fUSD/lending_fUSD_20260628
["ID","MTS","AMOUNT","RATE_DAILY","PERIOD"]
[426596827,1782654641000,-750.50178083,0.00026945,2]
[426596828,1782654641000,-877.24592171,0.00026945,2]
[426596830,1782654641000,-10049.2853689,0.00027082,2]
[426596875,1782654641000,-573.86,0.00028327,2]
[426596831,1782654641000,-150.0,0.00027179,5]
[426596832,1782654641000,-153.33,0.00027193,30]
[426596833,1782654641000,-397.57664766,0.00027228,2]
[426596834,1782654641000,-193.2664441,0.00027397,7]
[426596835,1782654641000,-213.35940004,0.00027397,7]
[426596839,1782654641000,-300.0,0.00027397,2]
[426596838,1782654641000,-191.89,0.00027397,2]
[426596837,1782654641000,-1500.0,0.00027397,2]
[426596836,1782654641000,-150.0,0.00027397,2]
[426596841,1782654641000,-530.85,0.00027397,2]
[426596840,1782654641000,-3097.95,0.00027397,2]
[426596845,1782654641000,-2807.53,0.00027397,10]
[426596842,1782654641000,-287.44,0.00027397,2]
[426596844,1782654641000,-3369.04,0.00027397,10]
[426596843,1782654641000,-4042.84,0.00027397,10]
[426596847,1782654641000,-254.7574926,0.00027397,7]
[426596846,1782654641000,-260.0,0.00027397,9]
[426596848,1782654641000,-214.91783608,0.00027397,2]
[426596877,1782654641000,-482.33,0.00028327,2]
[426596871,1782654641000,-952.73142191,0.00027957,2]
[426596880,1782654641000,-310.0,0.000285,2]
[426596909,1782654641000,-397.57664766,0.00029136,2]
[426596910,1782654641000,-693.16096788,0.00029149,7]
[426596911,1782654641000,-482.58,0.0002915,2]
[426596913,1782654641000,-475.91,0.000295,7]
[426596912,1782654641000,-10049.2853689,0.00029292,2]
[426596914,1782654641000,-159.0,0.00029667,30]
[426596915,1782654641000,-154.0,0.0002967,30]
[426596916,1782654641000,-157.0,0.0002967,30]
[426596919,1782654641000,-152.0,0.0002967,30]
[426596917,1782654641000,-490.0,0.0002967,30]
[426596918,1782654641000,-572.0,0.0002967,30]
[426596922,1782654641000,-154.0,0.00029672,30]
[426596920,1782654641000,-153.0,0.00029672,30]
[426596921,1782654641000,-332.0,0.00029672,30]
[426596923,1782654641000,-153.0,0.00029672,30]
[426596924,1782654641000,-663.0,0.00029672,30]
[426596926,1782654641000,-1594.22,0.00029889,2]
[426596925,1782654641000,-153.0,0.00029672,30]
[426596927,1782654641000,-4047.26251956,0.000299,2]
[426596929,1782654641000,-4047.26251956,0.000299,2]
[426596928,1782654641000,-4047.26251956,0.000299,2]
[426596930,1782654641000,-4047.26251956,0.000299,2]
[426596931,1782654641000,-1400.0,0.000299,10]
[426596878,1782654641000,-475.91,0.000284,7]
[426596933,1782654641000,-4047.26251956,0.000299,2]
[426596904,1782654641000,-890.97089339,0.00029,2]
[426596906,1782654641000,-1144.32226528,0.00029042,2]
[426596932,1782654641000,-4047.26251956,0.000299,2]
[426596908,1782654641000,-1232.51935915,0.00029045,2]
[426596886,1782654641000,-157.0,0.0002867,30]
[426596881,1782654641000,-322.0,0.000285,2]
[426596882,1782654641000,-317.0,0.000285,2]
[426596885,1782654641000,-154.0,0.0002867,30]
[426596879,1782654641000,-1277.0,0.00028481,2]
[426596883,1782654641000,-518.0,0.00028543,2]
[426596884,1782654641000,-159.0,0.00028667,30]
[426596891,1782654641000,-332.0,0.00028672,30]
[426596889,1782654641000,-152.0,0.0002867,30]
[426596888,1782654641000,-572.0,0.0002867,30]
[426596890,1782654641000,-153.0,0.00028672,30]
[426596892,1782654641000,-154.0,0.00028672,30]
[426596887,1782654641000,-490.0,0.0002867,30]
[426596894,1782654641000,-663.0,0.00028672,30]
[426596893,1782654641000,-153.0,0.00028672,30]
[426596903,1782654641000,-508.85,0.00029,2]
[426596900,1782654641000,-150.0,0.00029,2]
[426596902,1782654641000,-500.0,0.00029,2]
[426596901,1782654641000,-252.18,0.00029,2]
[426596905,1782654641000,-1149.15812679,0.00029042,2]
[426596899,1782654641000,-824.0,0.000289,5]
[426596898,1782654641000,-1143.2777063,0.00028798,2]
[426596895,1782654641000,-153.0,0.00028672,30]
[426596896,1782654641000,-158.25400753,0.00028767,2]
[426596897,1782654641000,-817.2846,0.00028784,14]
[426596907,1782654641000,-1228.14429039,0.00029045,2]
[426596942,1782654642000,-10000.0,0.0003,10]
[426596934,1782654642000,-4047.26251956,0.000299,2]
[426596936,1782654642000,-4047.26251956,0.000299,2]
[426596935,1782654642000,-4047.26251956,0.000299,2]
[426596938,1782654642000,-4047.26251956,0.000299,2]
[426596937,1782654642000,-4047.26251956,0.000299,2]
[426596939,1782654642000,-4047.26251956,0.000299,2]
[426596940,1782654642000,-691.0,0.00029915,2]
[426596941,1782654642000,-150.0,0.0003,2]
[426596943,1782654642000,-800.0,0.0003,2]
[426596944,1782654642000,-12499.99,0.0003,2]
[426596948,1782654642000,-200.0,0.0003,2]
[426596946,1782654642000,-200.0,0.0003,2]
[426596947,1782654642000,-200.0,0.0003,2]
[426596950,1782654642000,-200.0,0.0003,2]
[426596949,1782654642000,-200.0,0.0003,2]
[426596951,1782654642000,-179.40953563,0.00030056,2]
[426596952,1782654642000,-183.87517247,0.0003008,2]
[426596954,1782654642000,-500.0,0.00030089,2]
[426596953,1782654642000,-500.0,0.00030089,2]
[426596955,1782654642000,-397.57664766,0.0003009,2]
[426596956,1782654642000,-324661.73046253,0.0003009,2]
[426596945,1782654642000,-12500.0,0.0003,2]
[426596960,1782654643000,-153.56,0.00024658,2]
[426596962,1782654643000,-153.56,0.00025925,7]
[426596966,1782654643000,-591.23183786,0.00027397,2]
[426596967,1782654643000,-2339.61,0.00027397,10]
[426596964,1782654643000,-908.76816214,0.00027397,2]
[426596970,1782654643000,-296.78,0.0003009,2]
[426596969,1782654643000,-259.7,0.0003009,2]
[426596971,1782654643000,-1562.5,0.0003009,2]
[426596972,1782654643000,-485.29999995,0.0003009,2]
[426596968,1782654643000,-11656.28731501,0.0003009,2]
[426596988,1782654646000,-157.0,0.0003067,30]
[426596989,1782654646000,-490.0,0.0003067,30]
[426596990,1782654646000,-572.0,0.0003067,30]
[426596986,1782654646000,-159.0,0.00030667,30]
[426596985,1782654646000,-150.26800429,0.00030625,10]
[426596984,1782654646000,-150.26800429,0.00030449,8]
[426596987,1782654646000,-154.0,0.0003067,30]
[426596983,1782654646000,-475.91,0.000304,7]
[426596979,1782654646000,-150.26800429,0.00030215,5]
[426596980,1782654646000,-12499.98,0.0003025,2]
[426596978,1782654646000,-150.26800429,0.00030156,4]
[426596981,1782654646000,-150.26800429,0.00030313,7]
[426596975,1782654646000,-287.44,0.00030137,2]
[426596977,1782654646000,-4047.26251956,0.00030142,2]
[426596976,1782654646000,-150.26800429,0.00030137,2]
[426596974,1782654646000,-96216.91331507,0.0003009,2]
[426596982,1782654646000,-10049.2853689,0.00030396,2]
[426596991,1782654646000,-152.0,0.0003067,30]
[426596992,1782654646000,-153.0,0.00030672,30]
[426596995,1782654646000,-153.0,0.00030672,30]
[426596993,1782654646000,-332.0,0.00030672,30]
[426597011,1782654646000,-410.70525639,0.00030936,2]
[426597010,1782654646000,-1403.59347474,0.00030936,2]
[426597008,1782654646000,-318.75560574,0.00030932,2]
[426597005,1782654646000,-131.19400532,0.00030906,2]
[426597009,1782654646000,-989.04126887,0.00030932,2]
[426597006,1782654646000,-1247.57599468,0.00030932,2]
[426597004,1782654646000,-350.40287997,0.00030906,2]
[426597007,1782654646000,-65.7475788,0.00030932,2]
[426597003,1782654646000,-500.0,0.00030906,2]
[426596996,1782654646000,-663.0,0.00030672,30]
[426596994,1782654646000,-154.0,0.00030672,30]
[426596997,1782654646000,-153.0,0.00030672,30]
[426597000,1782654646000,-500.0,0.00030906,2]
[426597001,1782654646000,-500.0,0.00030906,2]
[426597002,1782654646000,-500.0,0.00030906,2]
[426596998,1782654646000,-4047.26251956,0.00030832,2]
[426596999,1782654646000,-150.26800429,0.00030839,12]
[426597014,1782654647000,-456.96055404,0.00031,7]
[426597013,1782654647000,-256.73870307,0.00031,7]
[426597012,1782654647000,-997.88829693,0.00030936,2]
[426597015,1782654758000,220.72,0.00029704,120]
[426597016,1782654778000,164.02,0.00029685,120]
[426597017,1782654852000,500.0,0.00037336,120]
[426597020,1782654853000,500.0,0.00037336,120]
[426597019,1782654853000,500.0,0.00037336,120]
[426597018,1782654853000,500.0,0.00037336,120]
[426597021,1782654854000,500.0,0.00037336,120]
[426597023,1782654854000,519.24478778,0.00037336,120]
[426597022,1782654854000,500.0,0.00037336,120]
[426597025,1782654960000,166.66,0.00022769,30]
[426597026,1782655073000,-1188.0,0.00013,2]
[426597030,1782655103000,944.25,0.00037336,120]
[426597029,1782655103000,944.25,0.00037336,120]
[426597028,1782655103000,944.25,0.00037336,120]
[426597027,1782655103000,944.25,0.00037336,120]
[426597033,1782655104000,944.25,0.00037336,120]
[426597032,1782655104000,944.25,0.00037336,120]
[426597031,1782655104000,944.25,0.00037336,120]
[426597034,1782655105000,944.25,0.00037336,120]
[426597036,1782655105000,944.25,0.00037336,120]
[426597035,1782655105000,944.25,0.00037336,120]
[426597040,1782655106000,944.25,0.00037336,120]
[426597039,1782655106000,944.25,0.00037336,120]
[426597038,1782655106000,944.25,0.00037336,120]
[426597037,1782655106000,944.25,0.00037336,120]
[426597043,1782655107000,944.25,0.00037336,120]
[426597042,1782655107000,944.25,0.00037336,120]
[426597041,1782655107000,944.25,0.00037336,120]
[426597044,1782655108000,944.25,0.00037336,120]
[426597046,1782655108000,944.25,0.00037336,120]
[426597045,1782655108000,944.25,0.00037336,120]
[426597048,1782655109000,944.25,0.00037336,120]
[426597047,1782655109000,944.25,0.00037336,120]
[426597050,1782655110000,944.48502475,0.00037336,120]
[426597049,1782655110000,944.25,0.00037336,120]
[426597053,1782655388000,1034.00359065,0.00037335,120]
[426597055,1782655432000,2000.0,0.00037335,120]
[426597056,1782655443000,2000.0,0.00037338,120]
[426597057,1782655458000,2000.0,0.00037338,120]
[426597058,1782655481000,1500.0,0.00037338,120]
[426597059,1782655493000,1500.0,0.00037338,120]
[426597060,1782655526000,852.29,0.00037338,120]
[426597064,1782655527000,852.29,0.00037338,120]
[426597063,1782655527000,852.29,0.00037338,120]
[426597062,1782655527000,852.29,0.00037338,120]
[426597061,1782655527000,852.29,0.00037338,120]
[426597067,1782655528000,852.29,0.00037338,120]
[426597066,1782655528000,852.29,0.00037338,120]
[426597065,1782655528000,852.29,0.00037338,120]
[426597069,1782655529000,852.29,0.00037338,120]
[426597068,1782655529000,852.29,0.00037338,120]
[426597072,1782655530000,852.29,0.00037338,120]
[426597071,1782655530000,852.29,0.00037338,120]
[426597070,1782655530000,852.29,0.00037338,120]
[426597076,1782655531000,852.29,0.00037338,120]
[426597075,1782655531000,852.29,0.00037338,120]
[426597074,1782655531000,852.29,0.00037338,120]
[426597073,1782655531000,852.29,0.00037338,120]
[426597077,1782655532000,852.29,0.00037338,120]
[426597078,1782655532000,852.29,0.00037338,120]
[426597079,1782655532000,852.29,0.00037338,120]
[426597082,1782655533000,852.29,0.00037338,120]
[426597081,1782655533000,852.29,0.00037338,120]
[426597080,1782655533000,852.29,0.00037338,120]
[426597083,1782655534000,852.37299108,0.00037338,120]
[426597085,1782655615000,-285.05513885,0.00013054,2]
[426597084,1782655615000,-111.5365978,0.00013,2]
[426597086,1782655615000,-150.0,0.00013488,2]
[426597089,1782655615000,-150.00000001,0.00013488,2]
[426597090,1782655615000,-150.0,0.00013488,2]
[426597087,1782655615000,-150.0,0.00013488,2]
[426597088,1782655615000,-150.0,0.00013488,2]
[426597091,1782655615000,-55.87868345,0.00013488,2]
[426597094,1782655642000,-150.0,0.00013488,2]
[426597095,1782655642000,-78.46270977,0.00013654,2]
[426597092,1782655642000,-94.12131655,0.00013488,2]
[426597093,1782655642000,-150.0,0.00013488,2]
[426597097,1782655681000,25220.23836517,0.00014,35]
[426597126,1782655831000,-150.0,0.0001376,2]
[426597131,1782655831000,-150.0,0.00013987,2]
[426597127,1782655831000,-151.0,0.0001376,2]
[426597130,1782655831000,-160.0,0.00013824,2]
[426597129,1782655831000,-150.0,0.00013821,2]
[426597135,1782655831000,-150.0,0.00014154,2]
[426597136,1782655831000,-150.0,0.00014237,2]
[426597133,1782655831000,-920.07598382,0.00014,2]
[426597123,1782655831000,-64.24950621,0.0001376,2]
[426597134,1782655831000,-698.84636987,0.00014,2]
[426597132,1782655831000,-250.0,0.00014,2]
[426597124,1782655831000,-86.75049379,0.0001376,2]
[426597120,1782655831000,-372.10336806,0.0001376,2]
[426597121,1782655831000,-127.89663194,0.0001376,2]
[426597122,1782655831000,-151.0,0.0001376,2]
[426597137,1782655831000,-150.0,0.00014237,2]
[426597119,1782655831000,-148.52190489,0.00013747,2]
[426597112,1782655831000,-150.0,0.00013641,2]
[426597114,1782655831000,-151.0,0.00013674,2]
[426597117,1782655831000,-151.0,0.00013717,2]
[426597116,1782655831000,-150.0,0.00013697,2]
[426597118,1782655831000,-4.47809511,0.00013747,2]
[426597115,1782655831000,-153.0,0.00013683,2]
[426597113,1782655831000,-71.53729023,0.00013654,2]
[426597125,1782655831000,-150.0,0.0001376,2]
[426597140,1782655831000,-433.78159319,0.00014276,2]
[426597128,1782655831000,-216.54711319,0.00013773,2]
[426597143,1782655831000,-250.0,0.000143,2]
[426597166,1782655831000,-500.0,0.00014899,2]
[426597162,1782655831000,-500.0,0.00014899,2]
[426597165,1782655831000,-500.0,0.00014899,2]
[426597164,1782655831000,-500.0,0.00014899,2]
[426597161,1782655831000,-500.0,0.00014899,2]
[426597138,1782655831000,-150.0,0.00014237,2]
[426597157,1782655831000,-150.0,0.0001482,2]
[426597156,1782655831000,-800.0,0.000148,5]
[426597158,1782655831000,-8293.1601,0.00014899,2]
[426597153,1782655831000,-600.0,0.000147,5]
[426597154,1782655831000,-1400.0,0.000148,5]
[426597152,1782655831000,-1000.0,0.000147,5]
[426597159,1782655831000,-1310.264,0.00014899,2]
[426597163,1782655831000,-500.0,0.00014899,2]
[426597148,1782655831000,-200.0,0.000145,5]
[426597160,1782655831000,-150.0,0.00014899,2]
[426597151,1782655831000,-150.0,0.00014653,2]
[426597149,1782655831000,-700.0,0.000146,5]
[426597144,1782655831000,-782.33,0.00014316,2]
[426597147,1782655831000,-300.0,0.000145,5]
[426597141,1782655831000,-648.91132064,0.00014276,2]
[426597142,1782655831000,-500.0,0.000143,2]
[426597146,1782655831000,-150.0,0.00014487,2]
[426597145,1782655831000,-150.0,0.0001432,2]
[426597150,1782655831000,-400.0,0.000146,5]
[426597139,1782655831000,-245.89140972,0.00014276,2]
[426597175,1782655832000,-237.87975563,0.000149,2]
[426597177,1782655832000,-54.18881203,0.000149,5]
[426597184,1782655832000,-198.3038568,0.00014986,2]
[426597182,1782655832000,-835.9057499,0.000149,2]
[426597176,1782655832000,-1645.81118797,0.000149,5]
[426597181,1782655832000,-170.94129522,0.000149,2]
[426597179,1782655832000,-156.02381534,0.000149,2]
[426597172,1782655832000,-477.62561305,0.000149,2]
[426597170,1782655832000,-500.0,0.00014899,2]
[426597178,1782655832000,-2500.0,0.000149,2]
[426597174,1782655832000,-4019.71414756,0.000149,2]
[426597168,1782655832000,-393.57299484,0.00014899,2]
[426597171,1782655832000,-218.80028665,0.00014899,2]
[426597169,1782655832000,-500.0,0.00014899,2]
[426597183,1782655832000,-150.0,0.00014986,2]
[426597180,1782655832000,-1000.0,0.000149,5]
[426597185,1782655832000,-150.0,0.00014986,2]
[426597167,1782655832000,-500.0,0.00014899,2]
[426597189,1782655832000,-190.27288173,0.0001499,2]
[426597187,1782655832000,-176.62566896,0.00014986,2]
[426597202,1782655832000,-5406.32014747,0.00015,2]
[426597201,1782655832000,-666.0,0.00014999,2]
[426597200,1782655832000,-300.0,0.00014999,2]
[426597203,1782655832000,-83349.77827798,0.00015,2]
[426597199,1782655832000,-300.0,0.00014999,2]
[426597197,1782655832000,-176.56632412,0.00014999,2]
[426597198,1782655832000,-321.29538161,0.00014999,2]
[426597173,1782655832000,-35100.3817,0.000149,2]
[426597191,1782655832000,-538.69511906,0.00014999,2]
[426597192,1782655832000,-500.0,0.00014999,2]
[426597190,1782655832000,-500.0,0.00014999,2]
[426597188,1782655832000,-190.27288173,0.0001499,2]
[426597195,1782655832000,-500.0,0.00014999,2]
[426597193,1782655832000,-500.0,0.00014999,2]
[426597186,1782655832000,-150.0,0.00014986,2]
[426597194,1782655832000,-500.0,0.00014999,2]
[426597196,1782655832000,-500.0,0.00014999,2]
[426597228,1782655837000,-330.8089235,0.00015,2]
[426597226,1782655837000,-404.3482089,0.00014899,2]
[426597227,1782655837000,-95.6517911,0.00014899,2]
[426597229,1782655837000,-484.19611743,0.00015,2]
[426597231,1782655837000,-888.72,0.00015,2]
[426597233,1782655837000,-1351.90172374,0.00015,2]
[426597234,1782655837000,-700.0,0.00015,2]
[426597230,1782655837000,-33503.357581,0.00015,2]
[426597235,1782655837000,-2287.2476791,0.00015,2]
[426597232,1782655837000,-24562.05981801,0.00015,2]
[426597236,1782655838000,-12729.40951622,0.00015,2]
[426597237,1782655838000,-18549.71018159,0.00015,2]
[426597287,1782655839000,-150.0,0.00014899,2]
[426597289,1782655839000,-23093.08099808,0.00015,2]
[426597288,1782655839000,-640.5766307,0.00015,2]
[426597290,1782655840000,-2965245.04771316,0.00015,2]
[426597314,1782655842000,-733.87205187,0.00015,2]
[426597313,1782655842000,-9534.05378606,0.00015,2]
[426597312,1782655842000,-3781.77249161,0.00015,2]
[426597311,1782655842000,-384818.05003979,0.00015,2]
[426597315,1782655843000,-133.60782446,0.00015,2]
[426597316,1782655843000,-4199.58,0.00015,2]
[426597320,1782655843000,-1550.0,0.00015,2]
[426597319,1782655843000,-618.47086119,0.00015,2]
[426597317,1782655843000,-449.6601868,0.00015,2]
[426597321,1782655843000,-23622.49769255,0.00015,2]
[426597322,1782655843000,-318.08471725,0.00015,2]
[426597318,1782655843000,-888.675,0.00015,2]
[426597361,1782655845000,-1478.77264254,0.000149,2]
[426597364,1782655846000,-2411.9937147,0.00015,2]
[426597363,1782655846000,-4821.95939554,0.00015,2]
[426597362,1782655846000,-146.69211341,0.000149,2]
[426597366,1782655846000,-1242.48,0.00015,2]
[426597369,1782655846000,-1490.89436833,0.00015,2]
[426597365,1782655846000,-450.0,0.00015,2]
[426597370,1782655846000,-418.40381739,0.00015,2]
[426597367,1782655846000,-83764.53228411,0.00015,2]
[426597368,1782655846000,-2107.54825541,0.00015,2]
[426597372,1782655862000,399.904946,0.00037338,120]
[426597373,1782655869000,204.87308858,0.00037338,120]
[426597388,1782655937000,500.0,0.00037338,120]
[426597387,1782655937000,500.0,0.00037338,120]
[426597390,1782655938000,550.91718125,0.00037338,120]
[426597389,1782655938000,500.0,0.00037338,120]
[426597396,1782655943000,205.93999256,0.00037338,120]
[426597398,1782656070000,1000.0,0.00031507,120]
[426597399,1782656130000,612.0,0.00031507,120]
[426597400,1782656190000,560.0,0.00031507,120]
[426597401,1782656250000,2500.0,0.00031507,120]
[426597409,1782656840000,-151.0,0.00013553,2]
[426597407,1782656840000,-151.0,0.00013553,2]
[426597406,1782656840000,-150.0,0.00013552,2]
[426597408,1782656840000,-151.0,0.00013553,2]
[426597410,1782656840000,-152.0,0.00013553,2]
[426597412,1782656840000,-41.25840263,0.00013553,2]
[426597411,1782656840000,-151.0,0.00013553,2]
[426597413,1782656854000,-110.74159737,0.00013553,2]
[426597414,1782656854000,-120.41160413,0.00013553,2]
[426597415,1782656899000,156.86502605,0.0002,20]
[426597417,1782656952000,-30.58839587,0.00013553,2]
[426597418,1782656952000,-150.0,0.00013553,2]
[426597420,1782656952000,-151.0,0.00013553,2]
[426597426,1782656952000,-150.0,0.00013553,2]
[426597419,1782656952000,-151.0,0.00013553,2]
[426597423,1782656952000,-152.0,0.00013553,2]
[426597422,1782656952000,-151.0,0.00013553,2]
[426597425,1782656952000,-151.0,0.00013553,2]
[426597424,1782656952000,-151.0,0.00013553,2]
[426597428,1782656952000,-152.0,0.00013553,2]
[426597421,1782656952000,-150.0,0.00013553,2]
[426597427,1782656952000,-153.0,0.00013553,2]
[426597429,1782656952000,-150.0,0.00013553,2]
[426597437,1782656952000,-151.0,0.00013554,2]
[426597436,1782656952000,-151.0,0.00013554,2]
[426597435,1782656952000,-150.0,0.00013554,2]
[426597438,1782656952000,-151.0,0.00013554,2]
[426597433,1782656952000,-151.0,0.00013554,2]
[426597431,1782656952000,-151.0,0.00013553,2]
[426597432,1782656952000,-150.0,0.00013553,2]
[426597430,1782656952000,-151.0,0.00013553,2]
[426597434,1782656952000,-151.0,0.00013554,2]
[426597450,1782656953000,-151.0,0.00013554,2]
[426597452,1782656953000,-150.0,0.00013554,2]
[426597453,1782656953000,-500.0,0.00013554,2]
[426597454,1782656953000,-216.54711319,0.00013585,2]
[426597456,1782656953000,-200.0,0.00014128,2]
[426597455,1782656953000,-150.0,0.00013862,2]
[426597448,1782656953000,-151.0,0.00013554,2]
[426597451,1782656953000,-151.0,0.00013554,2]
[426597447,1782656953000,-150.0,0.00013554,2]
[426597443,1782656953000,-151.0,0.00013554,2]
[426597444,1782656953000,-151.0,0.00013554,2]
[426597446,1782656953000,-153.0,0.00013554,2]
[426597445,1782656953000,-150.0,0.00013554,2]
[426597461,1782656953000,-628.94,0.00014267,2]
[426597440,1782656953000,-151.0,0.00013554,2]
[426597441,1782656953000,-153.0,0.00013554,2]
[426597442,1782656953000,-151.0,0.00013554,2]
[426597439,1782656953000,-153.0,0.00013554,2]
[426597449,1782656953000,-151.0,0.00013554,2]
[426597459,1782656953000,-210.93,0.00014205,2]
[426597479,1782656953000,-188.8819316,0.00014897,2]
[426597460,1782656953000,-325.34,0.00014231,2]
[426597478,1782656953000,-500.0,0.00014897,2]
[426597457,1782656953000,-163.85,0.00014128,2]
[426597477,1782656953000,-500.0,0.00014897,2]
[426597474,1782656953000,-500.0,0.00014897,2]
[426597476,1782656953000,-500.0,0.00014897,2]
[426597475,1782656953000,-500.0,0.00014897,2]
[426597473,1782656953000,-500.0,0.00014897,2]
[426597471,1782656953000,-500.0,0.00014897,2]
[426597470,1782656953000,-500.0,0.00014897,2]
[426597472,1782656953000,-500.0,0.00014897,2]
[426597467,1782656953000,-376.69,0.00014704,2]
[426597468,1782656953000,-500.0,0.00014897,2]
[426597465,1782656953000,-255.0,0.00014663,2]
[426597463,1782656953000,-640.64,0.00014449,2]
[426597466,1782656953000,-500.0,0.00014663,2]
[426597464,1782656953000,-151.18,0.0001463,2]
[426597462,1782656953000,-166.67,0.0001428,2]
[426597458,1782656953000,-258.72,0.00014204,2]
[426597469,1782656953000,-234.95085429,0.00014897,2]
[426597483,1782656965000,-500.0,0.00014897,2]
[426597481,1782656965000,-500.0,0.00014897,2]
[426597480,1782656965000,-311.1180684,0.00014897,2]
[426597482,1782656965000,-500.0,0.00014897,2]
[426597484,1782656965000,-500.0,0.00014897,2]
[426597489,1782656965000,-500.0,0.00014897,2]
[426597486,1782656965000,-500.0,0.00014897,2]
[426597488,1782656965000,-500.0,0.00014897,2]
[426597487,1782656965000,-500.0,0.00014897,2]
[426597490,1782656965000,-500.0,0.00014897,2]
[426597491,1782656965000,-122.73403322,0.00014897,2]
[426597485,1782656965000,-474.92881438,0.00014897,2]
[426597492,1782657009000,500.0,0.00013452,2]
[426597495,1782657031000,-959.58057949,0.000148,2]
[426597494,1782657031000,-472.2645827,0.000148,2]
[426597496,1782657031000,-822.2538549,0.000148,2]
[426597498,1782657031000,-151.0,0.000148,2]
[426597502,1782657031000,-904.0,0.00014897,2]
[426597497,1782657031000,-858.02816654,0.000148,2]
[426597501,1782657031000,-907.0,0.00014897,2]
[426597500,1782657031000,-893.0,0.00014897,2]
[426597499,1782657031000,-890.0,0.000148,2]
[426597503,1782657031000,-911.0,0.00014897,2]
[426597518,1782657032000,-2500.0,0.000149,2]
[426597519,1782657032000,-1422.28166143,0.000149,2]
[426597523,1782657032000,-152.00000001,0.0001491,2]
[426597521,1782657032000,-1033.31351895,0.00014908,2]
[426597524,1782657032000,-500.0,0.00014937,2]
[426597525,1782657032000,-151.0,0.00014997,2]
[426597528,1782657032000,-160.0,0.00014998,2]
[426597530,1782657032000,-9703.2023774,0.00014999,2]
[426597526,1782657032000,-151.0,0.00014997,2]
[426597532,1782657032000,-14556.70276812,0.00014999,2]
[426597531,1782657032000,-500.0,0.00014999,2]
[426597527,1782657032000,-1695.489,0.00014997,2]
[426597517,1782657032000,-200.0,0.000149,5]
[426597520,1782657032000,-200.28531303,0.00014907,2]
[426597516,1782657032000,-1382.23963335,0.000149,2]
[426597514,1782657032000,-938.2792234,0.000149,2]
[426597512,1782657032000,-150.0,0.000149,2]
[426597513,1782657032000,-1255.9488366,0.000149,2]
[426597508,1782657032000,-151.0,0.00014899,2]
[426597509,1782657032000,-152.0,0.00014899,2]
[426597510,1782657032000,-54494.491,0.00014899,2]
[426597507,1782657032000,-708.1799281,0.00014898,2]
[426597504,1782657032000,-907.0,0.00014897,2]
[426597506,1782657032000,-88189.8347,0.00014898,2]
[426597505,1782657032000,-150.0,0.00014897,2]
[426597533,1782657032000,-16702.44442038,0.00014999,2]
[426597515,1782657032000,-4960.9915,0.000149,2]
[426597511,1782657032000,-150.0,0.00014899,2]
[426597534,1782657032000,-500.0,0.00014999,2]
[426597536,1782657032000,-16481.7200079,0.00014999,2]
[426597564,1782657032000,-1605.16,0.00015,2]
[426597563,1782657032000,-3937.06871101,0.00015,2]